[Event "Titled Tuesday Blitz October 12 2021"]
[White "Piesik, Piotr"]
[Black "Svane, Frederik"]
[WhiteFideId "1136194"]
[BlackFideId "12923044"]
[WhiteElo "2336"]
[BlackElo "2459"]
[Result "0-1"]
[Round "11"]
[TimeControl "180+1"]
[Date "2021.10.12"]
[WhiteClock "0:01:33"]
[BlackClock "0:00:05"]

1. Nf3 {[%clk 0:03:00]}  c5 {[%clk 0:03:00]} 2. g3 {[%clk 0:03:01]}  Nc6 {[%clk 0:03:00]} 3. Bg2 {[%clk 0:03:01]}  g6 {[%clk 0:03:00]} 4. O-O {[%clk 0:03:02]}  Bg7 {[%clk 0:03:01]} 5. c3 {[%clk 0:03:03]}  e5 {[%clk 0:03:01]} 6. e4 {[%clk 0:03:03]}  Nge7 {[%clk 0:03:00]} 7. Na3 {[%clk 0:03:03]}  O-O {[%clk 0:03:00]} 8. d4 {[%clk 0:03:03]}  exd4 {[%clk 0:03:00]} 9. cxd4 {[%clk 0:03:03]}  cxd4 {[%clk 0:03:00]} 10. Bf4 {[%clk 0:03:02]}  d5 {[%clk 0:02:57]} 11. e5 {[%clk 0:03:02]}  Bg4 {[%clk 0:02:55]} 12. Re1 {[%clk 0:03:00]}  Qb6 {[%clk 0:02:54]} 13. b3 {[%clk 0:02:59]}  h6 {[%clk 0:02:48]} 14. h4 {[%clk 0:02:57]}  Rfe8 {[%clk 0:02:44]} 15. Qd2 {[%clk 0:02:53]}  Kh7 {[%clk 0:02:27]} 16. Nc2 {[%clk 0:02:50]}  Bxf3 {[%clk 0:02:06]} 17. Bxf3 {[%clk 0:02:50]}  Nf5 {[%clk 0:01:57]} 18. Bxd5 {[%clk 0:02:48]}  Nxe5 {[%clk 0:01:51]} 19. Bxe5 {[%clk 0:02:48]}  Rxe5 {[%clk 0:01:52]} 20. Rxe5 {[%clk 0:02:46]}  Bxe5 {[%clk 0:01:52]} 21. Re1 {[%clk 0:02:45]}  Bxg3 {[%clk 0:01:00]} 22. fxg3 {[%clk 0:02:38]}  d3+ {[%clk 0:00:59]} 23. Ne3 {[%clk 0:02:37]}  Re8 {[%clk 0:00:59]} 24. Kf2 {[%clk 0:02:37]}  Qd4 {[%clk 0:00:56]} 25. Bf3 {[%clk 0:02:32]}  h5 {[%clk 0:00:45]} 26. Bxb7 {[%clk 0:02:29]}  Re6 {[%clk 0:00:31]} 27. Bc8 {[%clk 0:02:21]}  Nd6 {[%clk 0:00:19]} 28. Kg2 {[%clk 0:01:47]}  Nxc8 {[%clk 0:00:14]} 29. Nc4 {[%clk 0:01:47]}  Rxe1 {[%clk 0:00:10]} 30. Qxe1 {[%clk 0:01:48]}  Nd6 {[%clk 0:00:08]} 31. Qe7 {[%clk 0:01:38]}  Qd5+ {[%clk 0:00:07]} 32. Kf2 {[%clk 0:01:36]}  d2 {[%clk 0:00:07]} 33. Nxd6 {[%clk 0:01:33]}  d1=Q {[%clk 0:00:05]} 0-1


[Site "https://www.chess.com"]

[Event "Titled Tuesday Blitz October 12 2021"]
[White "Rasulov, Vugar"]
[Black "Nagy, Gabor"]
[WhiteFideId "13402390"]
[BlackFideId "737119"]
[WhiteElo "2560"]
[BlackElo "2534"]
[Result "1-0"]
[Round "11"]
[TimeControl "180+1"]
[Date "2021.10.12"]
[WhiteClock "0:01:21"]
[BlackClock "0:00:58"]

1. d4 {[%clk 0:03:00]}  Nf6 {[%clk 0:02:59]} 2. c4 {[%clk 0:03:01]}  b6 {[%clk 0:02:57]} 3. Nf3 {[%clk 0:03:00]}  Bb7 {[%clk 0:02:58]} 4. Nc3 {[%clk 0:02:59]}  Ne4 {[%clk 0:02:56]} 5. Nxe4 {[%clk 0:02:55]}  Bxe4 {[%clk 0:02:56]} 6. d5 {[%clk 0:02:56]}  c5 {[%clk 0:02:53]} 7. Ng5 {[%clk 0:02:53]}  Bg6 {[%clk 0:02:53]} 8. h4 {[%clk 0:02:54]}  h6 {[%clk 0:02:52]} 9. Nf3 {[%clk 0:02:52]}  d6 {[%clk 0:02:51]} 10. h5 {[%clk 0:02:50]}  Bh7 {[%clk 0:02:50]} 11. Nd2 {[%clk 0:02:42]}  Nd7 {[%clk 0:02:49]} 12. e4 {[%clk 0:02:42]}  e5 {[%clk 0:02:48]} 13. f3 {[%clk 0:02:35]}  Be7 {[%clk 0:02:47]} 14. Bd3 {[%clk 0:02:33]}  Bh4+ {[%clk 0:02:45]} 15. Ke2 {[%clk 0:02:34]}  Be7 {[%clk 0:02:44]} 16. g4 {[%clk 0:02:30]}  O-O {[%clk 0:02:43]} 17. Nb1 {[%clk 0:02:31]}  Bg5 {[%clk 0:02:32]} 18. Nc3 {[%clk 0:02:29]}  Re8 {[%clk 0:02:29]} 19. Bxg5 {[%clk 0:02:24]}  hxg5 {[%clk 0:02:24]} 20. Qd2 {[%clk 0:02:25]}  a6 {[%clk 0:02:23]} 21. a4 {[%clk 0:02:25]}  Nf8 {[%clk 0:02:17]} 22. Kf2 {[%clk 0:02:25]}  Qf6 {[%clk 0:02:16]} 23. Kg2 {[%clk 0:02:24]}  a5 {[%clk 0:02:15]} 24. Ra3 {[%clk 0:02:19]}  Rab8 {[%clk 0:02:14]} 25. Rb3 {[%clk 0:02:19]}  Nd7 {[%clk 0:02:07]} 26. Ne2 {[%clk 0:02:16]}  Kf8 {[%clk 0:02:06]} 27. Ng1 {[%clk 0:02:12]}  Ke7 {[%clk 0:02:06]} 28. Nh3 {[%clk 0:02:12]}  Kd8 {[%clk 0:02:02]} 29. Qxg5 {[%clk 0:02:11]}  Kc7 {[%clk 0:02:02]} 30. Qxf6 {[%clk 0:02:08]}  gxf6 {[%clk 0:02:03]} 31. Nf2 {[%clk 0:02:05]}  Rg8 {[%clk 0:02:01]} 32. Kf1 {[%clk 0:02:05]}  Rbd8 {[%clk 0:01:56]} 33. Nd1 {[%clk 0:02:05]}  Nb8 {[%clk 0:01:57]} 34. Nc3 {[%clk 0:01:59]}  Na6 {[%clk 0:01:56]} 35. Nb5+ {[%clk 0:01:58]}  Kb7 {[%clk 0:01:55]} 36. Kf2 {[%clk 0:01:59]}  Nb4 {[%clk 0:01:55]} 37. Bb1 {[%clk 0:01:58]}  Kc8 {[%clk 0:01:54]} 38. Re3 {[%clk 0:01:55]}  Rg5 {[%clk 0:01:53]} 39. Ree1 {[%clk 0:01:55]}  Kd7 {[%clk 0:01:53]} 40. Reg1 {[%clk 0:01:55]}  Rdg8 {[%clk 0:01:53]} 41. Na3 {[%clk 0:01:50]}  R8g7 {[%clk 0:01:51]} 42. Rd1 {[%clk 0:01:49]}  Rg8 {[%clk 0:01:50]} 43. Nc2 {[%clk 0:01:50]}  f5 {[%clk 0:01:32]} 44. exf5 {[%clk 0:01:43]}  Bxf5 {[%clk 0:01:29]} 45. Nxb4 {[%clk 0:01:42]}  Bxb1 {[%clk 0:01:30]} 46. Rxb1 {[%clk 0:01:30]}  axb4 {[%clk 0:01:25]} 47. h6 {[%clk 0:01:31]}  f5 {[%clk 0:01:22]} 48. Rbg1 {[%clk 0:01:26]}  f4 {[%clk 0:01:12]} 49. a5 {[%clk 0:01:25]}  bxa5 {[%clk 0:01:12]} 50. Ra1 {[%clk 0:01:25]}  e4 {[%clk 0:01:12]} 51. h7 {[%clk 0:01:25]}  Rh8 {[%clk 0:01:11]} 52. Rxa5 {[%clk 0:01:26]}  Kc7 {[%clk 0:01:07]} 53. Ra7+ {[%clk 0:01:25]}  Kb6 {[%clk 0:01:07]} 54. Rd7 {[%clk 0:01:25]}  Rg6 {[%clk 0:01:06]} 55. fxe4 {[%clk 0:01:25]}  Rxg4 {[%clk 0:01:04]} 56. Rxd6+ {[%clk 0:01:24]}  Kc7 {[%clk 0:01:04]} 57. Rc6+ {[%clk 0:01:23]}  Kb7 {[%clk 0:01:05]} 58. Kf3 {[%clk 0:01:23]}  Rg3+ {[%clk 0:01:01]} 59. Kxf4 {[%clk 0:01:23]}  Rg2 {[%clk 0:01:02]} 60. Rxc5 {[%clk 0:01:23]}  Rxb2 {[%clk 0:01:00]} 61. Ke5 {[%clk 0:01:23]}  b3 {[%clk 0:01:00]} 62. Rb5+ {[%clk 0:01:23]}  Kc7 {[%clk 0:01:00]} 63. c5 {[%clk 0:01:22]}  Rb1 {[%clk 0:00:58]} 64. Rxb1 {[%clk 0:01:21]} 1-0


[Site "https://www.chess.com"]

[Event "Titled Tuesday Blitz October 12 2021"]
[White "Samsonkin, Artiom"]
[Black "Holt, Conrad"]
[WhiteFideId "13503111"]
[BlackFideId "2034387"]
[WhiteElo "2513"]
[BlackElo "2586"]
[Result "1-0"]
[Round "11"]
[TimeControl "180+1"]
[Date "2021.10.12"]
[WhiteClock "0:00:10"]
[BlackClock "0:00:12"]

1. e4 {[%clk 0:03:00]}  e6 {[%clk 0:03:00]} 2. d4 {[%clk 0:03:00]}  d5 {[%clk 0:03:00]} 3. Nc3 {[%clk 0:03:01]}  Nf6 {[%clk 0:02:58]} 4. e5 {[%clk 0:03:01]}  Nfd7 {[%clk 0:02:59]} 5. f4 {[%clk 0:03:01]}  c5 {[%clk 0:02:59]} 6. Nf3 {[%clk 0:03:02]}  Nc6 {[%clk 0:03:00]} 7. Be3 {[%clk 0:03:02]}  cxd4 {[%clk 0:03:01]} 8. Nxd4 {[%clk 0:03:02]}  Bc5 {[%clk 0:03:01]} 9. Qd2 {[%clk 0:03:02]}  O-O {[%clk 0:03:02]} 10. Be2 {[%clk 0:02:54]}  Qe7 {[%clk 0:02:59]} 11. O-O {[%clk 0:02:47]}  f6 {[%clk 0:02:58]} 12. exf6 {[%clk 0:02:44]}  Nxf6 {[%clk 0:02:58]} 13. Rad1 {[%clk 0:02:35]}  Bd7 {[%clk 0:02:55]} 14. Kh1 {[%clk 0:02:23]}  Bb4 {[%clk 0:02:46]} 15. Bd3 {[%clk 0:02:15]}  e5 {[%clk 0:01:56]} 16. Nxc6 {[%clk 0:01:54]}  bxc6 {[%clk 0:01:52]} 17. fxe5 {[%clk 0:01:54]}  Ng4 {[%clk 0:01:42]} 18. Bf4 {[%clk 0:01:34]}  d4 {[%clk 0:01:19]} 19. Bc4+ {[%clk 0:01:27]}  Kh8 {[%clk 0:01:13]} 20. Qxd4 {[%clk 0:01:21]}  Rad8 {[%clk 0:01:03]} 21. Ne4 {[%clk 0:01:07]}  Bf5 {[%clk 0:00:19]} 22. Nd6 {[%clk 0:00:56]}  Bg6 {[%clk 0:00:15]} 23. h3 {[%clk 0:00:42]}  c5 {[%clk 0:00:12]} 24. Qd5 {[%clk 0:00:20]}  Nh6 {[%clk 0:00:12]} 25. a3 {[%clk 0:00:15]}  Ba5 {[%clk 0:00:12]} 26. Bxh6 {[%clk 0:00:13]}  gxh6 {[%clk 0:00:11]} 27. Rxf8+ {[%clk 0:00:13]}  Rxf8 {[%clk 0:00:11]} 28. Qxc5 {[%clk 0:00:13]}  Bb6 {[%clk 0:00:11]} 29. Qd5 {[%clk 0:00:13]}  Qg5 {[%clk 0:00:11]} 30. e6 {[%clk 0:00:11]}  Qf6 {[%clk 0:00:11]} 31. Nf7+ {[%clk 0:00:11]}  Kg7 {[%clk 0:00:11]} 32. Qd7 {[%clk 0:00:09]}  Bxf7 {[%clk 0:00:10]} 33. exf7 {[%clk 0:00:10]}  Qf4 {[%clk 0:00:05]} 34. Qg4+ {[%clk 0:00:10]}  Qxg4 {[%clk 0:00:05]} 35. hxg4 {[%clk 0:00:11]}  Kf6 {[%clk 0:00:05]} 36. g3 {[%clk 0:00:11]}  Kg5 {[%clk 0:00:05]} 37. Re1 {[%clk 0:00:10]}  Kxg4 {[%clk 0:00:05]} 38. Re8 {[%clk 0:00:10]}  Bc5 {[%clk 0:00:05]} 39. b4 {[%clk 0:00:10]}  Bd6 {[%clk 0:00:05]} 40. Kg2 {[%clk 0:00:10]}  Kf5 {[%clk 0:00:05]} 41. Bb3 {[%clk 0:00:09]}  Kf6 {[%clk 0:00:05]} 42. Rxf8 {[%clk 0:00:10]}  Bxf8 {[%clk 0:00:05]} 43. Bd5 {[%clk 0:00:08]}  Ke5 {[%clk 0:00:05]} 44. c4 {[%clk 0:00:09]}  Kd4 {[%clk 0:00:05]} 45. Kf3 {[%clk 0:00:10]}  Kc3 {[%clk 0:00:06]} 46. c5 {[%clk 0:00:10]}  Kd4 {[%clk 0:00:06]} 47. c6 {[%clk 0:00:06]}  Kxd5 {[%clk 0:00:06]} 48. c7 {[%clk 0:00:06]}  Ke6 {[%clk 0:00:07]} 49. c8=Q+ {[%clk 0:00:07]}  Kxf7 {[%clk 0:00:07]} 50. Qd7+ {[%clk 0:00:07]}  Be7 {[%clk 0:00:07]} 51. Qxa7 {[%clk 0:00:07]}  h5 {[%clk 0:00:08]} 52. Qd7 {[%clk 0:00:05]}  h4 {[%clk 0:00:08]} 53. Qf5+ {[%clk 0:00:06]}  Kg7 {[%clk 0:00:08]} 54. gxh4 {[%clk 0:00:07]}  h5 {[%clk 0:00:08]} 55. b5 {[%clk 0:00:07]}  Bxa3 {[%clk 0:00:07]} 56. b6 {[%clk 0:00:07]}  Bd6 {[%clk 0:00:08]} 57. b7 {[%clk 0:00:07]}  Bb8 {[%clk 0:00:08]} 58. Qg5+ {[%clk 0:00:07]}  Kf7 {[%clk 0:00:08]} 59. Qxh5+ {[%clk 0:00:08]}  Kf6 {[%clk 0:00:08]} 60. Qh8+ {[%clk 0:00:08]}  Ke6 {[%clk 0:00:09]} 61. Qxb8 {[%clk 0:00:09]}  Kd5 {[%clk 0:00:09]} 62. Qc8 {[%clk 0:00:09]}  Kd4 {[%clk 0:00:09]} 63. h5 {[%clk 0:00:09]}  Kd3 {[%clk 0:00:09]} 64. h6 {[%clk 0:00:09]}  Kd2 {[%clk 0:00:10]} 65. h7 {[%clk 0:00:10]}  Kd1 {[%clk 0:00:10]} 66. b8=Q {[%clk 0:00:11]}  Ke1 {[%clk 0:00:11]} 67. h8=Q {[%clk 0:00:11]}  Kf1 {[%clk 0:00:12]} 68. Qh1# {[%clk 0:00:10]} 1-0


[Site "https://www.chess.com"]

[Event "Titled Tuesday Blitz October 12 2021"]
[White "Terry, Renato"]
[Black "Maly, Alexey"]
[WhiteFideId "3803457"]
[BlackFideId "14103184"]
[WhiteElo "2577"]
[BlackElo "2294"]
[Result "1-0"]
[Round "11"]
[TimeControl "180+1"]
[Date "2021.10.12"]
[WhiteClock "0:00:16"]
[BlackClock "0:00:49"]

1. e4 {[%clk 0:03:00]}  c6 {[%clk 0:03:00]} 2. Nf3 {[%clk 0:02:59]}  d5 {[%clk 0:03:01]} 3. exd5 {[%clk 0:03:00]}  cxd5 {[%clk 0:03:01]} 4. Ne5 {[%clk 0:03:01]}  Nc6 {[%clk 0:03:00]} 5. d4 {[%clk 0:03:01]}  Nf6 {[%clk 0:02:59]} 6. c3 {[%clk 0:03:02]}  g6 {[%clk 0:02:58]} 7. Bd3 {[%clk 0:03:02]}  Bg7 {[%clk 0:02:58]} 8. O-O {[%clk 0:03:02]}  O-O {[%clk 0:02:58]} 9. Qe2 {[%clk 0:03:02]}  Bf5 {[%clk 0:02:58]} 10. Bxf5 {[%clk 0:03:02]}  gxf5 {[%clk 0:02:59]} 11. Nd3 {[%clk 0:03:03]}  e6 {[%clk 0:02:59]} 12. Bf4 {[%clk 0:03:03]}  Qe7 {[%clk 0:02:54]} 13. Nd2 {[%clk 0:03:03]}  Ne4 {[%clk 0:02:53]} 14. Rae1 {[%clk 0:03:02]}  Kh8 {[%clk 0:02:52]} 15. f3 {[%clk 0:03:03]}  Nxd2 {[%clk 0:02:52]} 16. Qxd2 {[%clk 0:03:03]}  Bf6 {[%clk 0:02:50]} 17. Kh1 {[%clk 0:03:01]}  Rg8 {[%clk 0:02:50]} 18. Rg1 {[%clk 0:02:57]}  Rg7 {[%clk 0:02:46]} 19. g4 {[%clk 0:02:56]}  fxg4 {[%clk 0:02:46]} 20. fxg4 {[%clk 0:02:57]}  Rag8 {[%clk 0:02:41]} 21. h3 {[%clk 0:02:57]}  Bg5 {[%clk 0:02:35]} 22. Ref1 {[%clk 0:02:50]}  Bxf4 {[%clk 0:02:36]} 23. Nxf4 {[%clk 0:02:45]}  Qh4 {[%clk 0:02:35]} 24. Qh2 {[%clk 0:02:21]}  Rg5 {[%clk 0:02:19]} 25. Ng2 {[%clk 0:02:09]}  Qh6 {[%clk 0:02:18]} 26. Rxf7 {[%clk 0:02:09]}  e5 {[%clk 0:02:17]} 27. Ne3 {[%clk 0:01:49]}  Qg6 {[%clk 0:02:10]} 28. Rf5 {[%clk 0:01:38]}  exd4 {[%clk 0:02:10]} 29. cxd4 {[%clk 0:01:39]}  h5 {[%clk 0:01:55]} 30. Qf4 {[%clk 0:00:59]}  hxg4 {[%clk 0:01:50]} 31. Rxg4 {[%clk 0:00:58]}  Rxg4 {[%clk 0:01:44]} 32. Nxg4 {[%clk 0:00:57]}  Qh7 {[%clk 0:01:33]} 33. Kh2 {[%clk 0:00:46]}  Qh4 {[%clk 0:01:08]} 34. Rf6 {[%clk 0:00:30]}  Kg7 {[%clk 0:00:57]} 35. Qf5 {[%clk 0:00:20]}  Ne7 {[%clk 0:00:53]} 36. Rf7+ {[%clk 0:00:15]}  Kh8 {[%clk 0:00:53]} 37. Qe5+ {[%clk 0:00:15]}  Rg7 {[%clk 0:00:49]} 38. Qxg7# {[%clk 0:00:16]} 1-0


[Site "https://www.chess.com"]

[Event "Titled Tuesday Blitz October 12 2021"]
[White "Volkov, Maksim"]
[Black "Assaubayeva, Bibisara"]
[WhiteFideId "54123070"]
[BlackFideId "13708694"]
[WhiteElo "2113"]
[BlackElo "2232"]
[Result "0-1"]
[Round "11"]
[TimeControl "180+1"]
[Date "2021.10.12"]
[WhiteClock "0:00:03"]
[BlackClock "0:00:16"]

1. d4 {[%clk 0:03:00]}  Nf6 {[%clk 0:02:58]} 2. c4 {[%clk 0:03:01]}  g6 {[%clk 0:02:58]} 3. Nf3 {[%clk 0:03:00]}  Bg7 {[%clk 0:02:58]} 4. g3 {[%clk 0:03:00]}  O-O {[%clk 0:02:59]} 5. Bg2 {[%clk 0:03:01]}  Nc6 {[%clk 0:02:59]} 6. O-O {[%clk 0:02:49]}  d5 {[%clk 0:02:59]} 7. cxd5 {[%clk 0:02:47]}  Nxd5 {[%clk 0:03:00]} 8. Nc3 {[%clk 0:02:47]}  Nb6 {[%clk 0:02:59]} 9. d5 {[%clk 0:02:47]}  Na5 {[%clk 0:02:57]} 10. Qc2 {[%clk 0:02:48]}  c6 {[%clk 0:02:56]} 11. dxc6 {[%clk 0:02:47]}  Nxc6 {[%clk 0:02:57]} 12. Rd1 {[%clk 0:02:47]}  Bd7 {[%clk 0:02:46]} 13. Bf4 {[%clk 0:02:30]}  Rc8 {[%clk 0:02:41]} 14. Rac1 {[%clk 0:02:28]}  e5 {[%clk 0:02:30]} 15. Bg5 {[%clk 0:02:19]}  f6 {[%clk 0:02:18]} 16. Be3 {[%clk 0:02:19]}  Qe8 {[%clk 0:01:55]} 17. Bxb6 {[%clk 0:02:13]}  axb6 {[%clk 0:01:54]} 18. Qb3+ {[%clk 0:02:13]}  Be6 {[%clk 0:01:52]} 19. Qxb6 {[%clk 0:02:13]}  Qe7 {[%clk 0:01:46]} 20. a3 {[%clk 0:01:59]}  f5 {[%clk 0:01:37]} 21. Nd5 {[%clk 0:01:44]}  Bxd5 {[%clk 0:01:31]} 22. Rxd5 {[%clk 0:01:45]}  e4 {[%clk 0:01:32]} 23. Ne1 {[%clk 0:01:45]}  Ne5 {[%clk 0:01:17]} 24. Rdc5 {[%clk 0:01:33]}  Rxc5 {[%clk 0:01:10]} 25. Rxc5 {[%clk 0:01:29]}  Ng4 {[%clk 0:00:51]} 26. Rc7 {[%clk 0:01:23]}  Qd8 {[%clk 0:00:47]} 27. Qb3+ {[%clk 0:01:15]}  Kh8 {[%clk 0:00:45]} 28. Rxb7 {[%clk 0:01:12]}  Qd2 {[%clk 0:00:43]} 29. Qb4 {[%clk 0:01:10]}  Qxe2 {[%clk 0:00:43]} 30. h3 {[%clk 0:00:34]}  Qxf2+ {[%clk 0:00:40]} 31. Kh1 {[%clk 0:00:34]}  Ne3 {[%clk 0:00:34]} 32. Rd7 {[%clk 0:00:31]}  Qxg3 {[%clk 0:00:30]} 33. Kg1 {[%clk 0:00:15]}  f4 {[%clk 0:00:23]} 34. Qd2 {[%clk 0:00:08]}  Nxg2 {[%clk 0:00:20]} 35. Nxg2 {[%clk 0:00:05]}  f3 {[%clk 0:00:20]} 36. Rxg7 {[%clk 0:00:04]}  f2+ {[%clk 0:00:17]} 37. Kf1 {[%clk 0:00:04]}  Qxg2+ {[%clk 0:00:17]} 38. Kxg2 {[%clk 0:00:03]}  f1=Q+ {[%clk 0:00:18]} 39. Kg3 {[%clk 0:00:04]}  Rf3+ {[%clk 0:00:16]} 40. Kh4 {[%clk 0:00:03]}  Qxh3+ {[%clk 0:00:16]} 41. Kg5 {[%clk 0:00:03]}  Rf5# {[%clk 0:00:16]} 0-1


[Site "https://www.chess.com"]

[Event "Titled Tuesday Blitz October 12 2021"]
[White "Wagner, Dennis"]
[Black "Viani Antonio Dcunha"]
[WhiteFideId "24650684"]
[BlackFideId "5027330"]
[WhiteElo "2355"]
[BlackElo "2366"]
[Result "0-1"]
[Round "11"]
[TimeControl "180+1"]
[Date "2021.10.12"]
[WhiteClock "0:00:26"]
[BlackClock "0:00:19"]

1. e4 {[%clk 0:03:00]}  e5 {[%clk 0:02:59]} 2. Nf3 {[%clk 0:03:00]}  Nc6 {[%clk 0:02:59]} 3. Bb5 {[%clk 0:03:01]}  a6 {[%clk 0:02:58]} 4. Ba4 {[%clk 0:03:01]}  Nf6 {[%clk 0:02:59]} 5. O-O {[%clk 0:03:02]}  Bc5 {[%clk 0:02:57]} 6. c3 {[%clk 0:02:59]}  b5 {[%clk 0:02:57]} 7. Bb3 {[%clk 0:02:59]}  d6 {[%clk 0:02:57]} 8. d4 {[%clk 0:02:58]}  Bb6 {[%clk 0:02:57]} 9. Be3 {[%clk 0:02:57]}  Bb7 {[%clk 0:02:54]} 10. dxe5 {[%clk 0:02:49]}  Nxe5 {[%clk 0:02:49]} 11. Bxb6 {[%clk 0:02:44]}  Nxf3+ {[%clk 0:02:42]} 12. Qxf3 {[%clk 0:02:38]}  cxb6 {[%clk 0:02:36]} 13. Nd2 {[%clk 0:02:39]}  O-O {[%clk 0:02:35]} 14. Rfe1 {[%clk 0:02:38]}  Re8 {[%clk 0:02:34]} 15. Qf4 {[%clk 0:02:37]}  Qc7 {[%clk 0:02:01]} 16. Rad1 {[%clk 0:02:32]}  Re7 {[%clk 0:01:57]} 17. f3 {[%clk 0:01:59]}  Rae8 {[%clk 0:01:47]} 18. Nf1 {[%clk 0:01:55]}  Qc5+ {[%clk 0:01:45]} 19. Ne3 {[%clk 0:01:35]}  Bxe4 {[%clk 0:01:18]} 20. fxe4 {[%clk 0:01:20]}  Rxe4 {[%clk 0:01:19]} 21. Qxd6 {[%clk 0:00:56]}  Rxe3 {[%clk 0:01:14]} 22. Qxc5 {[%clk 0:00:51]}  Rxe1+ {[%clk 0:01:08]} 23. Rxe1 {[%clk 0:00:52]}  Rxe1+ {[%clk 0:01:07]} 24. Kf2 {[%clk 0:00:52]}  bxc5 {[%clk 0:01:01]} 25. Kxe1 {[%clk 0:00:53]}  Kf8 {[%clk 0:00:52]} 26. Ke2 {[%clk 0:00:52]}  Ke7 {[%clk 0:00:52]} 27. Kf3 {[%clk 0:00:52]}  c4 {[%clk 0:00:43]} 28. Bc2 {[%clk 0:00:52]}  Ke6 {[%clk 0:00:43]} 29. Kf4 {[%clk 0:00:48]}  h6 {[%clk 0:00:36]} 30. Bf5+ {[%clk 0:00:47]}  Kd6 {[%clk 0:00:33]} 31. h4 {[%clk 0:00:48]}  a5 {[%clk 0:00:28]} 32. a3 {[%clk 0:00:46]}  Kc5 {[%clk 0:00:20]} 33. Ke5 {[%clk 0:00:44]}  b4 {[%clk 0:00:19]} 34. g4 {[%clk 0:00:41]}  bxc3 {[%clk 0:00:17]} 35. bxc3 {[%clk 0:00:41]}  Nd5 {[%clk 0:00:18]} 36. g5 {[%clk 0:00:23]}  hxg5 {[%clk 0:00:19]} 37. hxg5 {[%clk 0:00:24]}  f6+ {[%clk 0:00:19]} 38. gxf6 {[%clk 0:00:21]}  gxf6+ {[%clk 0:00:20]} 39. Ke6 {[%clk 0:00:21]}  Nxc3 {[%clk 0:00:20]} 40. Kxf6 {[%clk 0:00:22]}  Nb5 {[%clk 0:00:20]} 41. a4 {[%clk 0:00:20]}  Nd4 {[%clk 0:00:20]} 42. Bb1 {[%clk 0:00:14]}  c3 {[%clk 0:00:19]} 43. Ke5 {[%clk 0:00:14]}  c2 {[%clk 0:00:18]} 44. Bxc2 {[%clk 0:00:15]}  Nxc2 {[%clk 0:00:19]} 45. Ke4 {[%clk 0:00:16]}  Kb4 {[%clk 0:00:18]} 46. Kd3 {[%clk 0:00:17]}  Na3 {[%clk 0:00:18]} 47. Kd2 {[%clk 0:00:17]}  Kxa4 {[%clk 0:00:18]} 48. Kc3 {[%clk 0:00:18]}  Nb5+ {[%clk 0:00:18]} 49. Kc4 {[%clk 0:00:18]}  Na7 {[%clk 0:00:17]} 50. Kc3 {[%clk 0:00:18]}  Kb5 {[%clk 0:00:17]} 51. Kb3 {[%clk 0:00:19]}  Nc6 {[%clk 0:00:18]} 52. Ka3 {[%clk 0:00:19]}  a4 {[%clk 0:00:18]} 53. Ka2 {[%clk 0:00:20]}  Kb4 {[%clk 0:00:18]} 54. Kb2 {[%clk 0:00:20]}  Ne5 {[%clk 0:00:18]} 55. Ka2 {[%clk 0:00:21]}  Nf3 {[%clk 0:00:18]} 56. Kb2 {[%clk 0:00:22]}  Nd4 {[%clk 0:00:18]} 57. Ka2 {[%clk 0:00:23]}  a3 {[%clk 0:00:18]} 58. Kb1 {[%clk 0:00:23]}  Kb3 {[%clk 0:00:18]} 59. Ka1 {[%clk 0:00:24]}  Nc2+ {[%clk 0:00:18]} 60. Kb1 {[%clk 0:00:24]}  a2+ {[%clk 0:00:18]} 61. Kc1 {[%clk 0:00:25]}  a1=Q+ {[%clk 0:00:19]} 62. Kd2 {[%clk 0:00:26]}  Qe1+ {[%clk 0:00:19]} 0-1


[Site "https://www.chess.com"]

[Event "Titled Tuesday Blitz October 12 2021"]
[White "Weetik, Vjacheslav"]
[Black "Obregon, Andres Carlos"]
[WhiteFideId "4153472"]
[BlackFideId "111724"]
[WhiteElo "2469"]
[BlackElo "2572"]
[Result "0-1"]
[Round "11"]
[TimeControl "180+1"]
[Date "2021.10.12"]
[WhiteClock "0:00:13"]
[BlackClock "0:01:50"]

1. d4 {[%clk 0:02:59]}  Nf6 {[%clk 0:02:59]} 2. Bf4 {[%clk 0:02:59]}  d5 {[%clk 0:02:53]} 3. e3 {[%clk 0:02:59]}  c5 {[%clk 0:02:50]} 4. c3 {[%clk 0:02:59]}  Nc6 {[%clk 0:02:47]} 5. Nd2 {[%clk 0:02:59]}  Bf5 {[%clk 0:02:44]} 6. Ngf3 {[%clk 0:02:59]}  e6 {[%clk 0:02:41]} 7. Nh4 {[%clk 0:02:59]}  Bg4 {[%clk 0:02:38]} 8. Qb3 {[%clk 0:02:59]}  Qc8 {[%clk 0:02:35]} 9. h3 {[%clk 0:02:58]}  Bh5 {[%clk 0:02:31]} 10. g4 {[%clk 0:02:58]}  Bg6 {[%clk 0:02:29]} 11. Nxg6 {[%clk 0:02:58]}  hxg6 {[%clk 0:02:27]} 12. Be2 {[%clk 0:02:59]}  Qd7 {[%clk 0:02:23]} 13. Kf1 {[%clk 0:02:57]}  Bd6 {[%clk 0:02:20]} 14. Bxd6 {[%clk 0:02:55]}  Qxd6 {[%clk 0:02:19]} 15. Qxb7 {[%clk 0:02:48]}  Rb8 {[%clk 0:02:16]} 16. Qa6 {[%clk 0:02:48]}  Rxb2 {[%clk 0:02:14]} 17. Bb5 {[%clk 0:02:29]}  O-O {[%clk 0:02:04]} 18. Rd1 {[%clk 0:02:12]}  cxd4 {[%clk 0:02:02]} 19. cxd4 {[%clk 0:01:49]}  Qb4 {[%clk 0:02:00]} 20. Bxc6 {[%clk 0:01:29]}  Rxd2 {[%clk 0:01:54]} 21. Rxd2 {[%clk 0:01:27]}  Qxd2 {[%clk 0:01:55]} 22. Kg2 {[%clk 0:01:20]}  Ne4 {[%clk 0:01:54]} 23. Rf1 {[%clk 0:01:20]}  f5 {[%clk 0:01:54]} 24. g5 {[%clk 0:00:42]}  f4 {[%clk 0:01:53]} 25. exf4 {[%clk 0:00:13]}  Rxf4 {[%clk 0:01:50]} 0-1


[Site "https://www.chess.com"]

[Event "Titled Tuesday Blitz October 12 2021"]
[White "Yilmaz, Mustafa"]
[Black "Gaehwiler, Gabriel"]
[WhiteFideId "6302718"]
[BlackFideId "1314530"]
[WhiteElo "2518"]
[BlackElo "2320"]
[Result "1-0"]
[Round "11"]
[TimeControl "180+1"]
[Date "2021.10.12"]
[WhiteClock "0:01:15"]
[BlackClock "0:00:46"]

1. c4 {[%clk 0:03:00]}  g6 {[%clk 0:02:59]} 2. d4 {[%clk 0:03:00]}  Bg7 {[%clk 0:03:00]} 3. Nf3 {[%clk 0:03:00]}  Nf6 {[%clk 0:03:01]} 4. Nc3 {[%clk 0:03:01]}  O-O {[%clk 0:03:01]} 5. e4 {[%clk 0:03:01]}  d6 {[%clk 0:03:02]} 6. Be2 {[%clk 0:03:02]}  e5 {[%clk 0:03:02]} 7. O-O {[%clk 0:02:59]}  Bg4 {[%clk 0:03:02]} 8. d5 {[%clk 0:02:58]}  a5 {[%clk 0:03:01]} 9. Bg5 {[%clk 0:02:57]}  Na6 {[%clk 0:02:57]} 10. Ne1 {[%clk 0:02:55]}  Bd7 {[%clk 0:02:56]} 11. Nd3 {[%clk 0:02:54]}  h6 {[%clk 0:02:50]} 12. Be3 {[%clk 0:02:53]}  Qe8 {[%clk 0:02:49]} 13. c5 {[%clk 0:02:46]}  Nh7 {[%clk 0:02:42]} 14. cxd6 {[%clk 0:02:31]}  cxd6 {[%clk 0:02:42]} 15. Bb6 {[%clk 0:02:29]}  f5 {[%clk 0:02:34]} 16. Bxa5 {[%clk 0:02:27]}  Nf6 {[%clk 0:02:24]} 17. f3 {[%clk 0:02:21]}  g5 {[%clk 0:02:16]} 18. b4 {[%clk 0:02:11]}  g4 {[%clk 0:02:09]} 19. Rc1 {[%clk 0:02:00]}  g3 {[%clk 0:01:59]} 20. hxg3 {[%clk 0:01:57]}  Qg6 {[%clk 0:01:56]} 21. exf5 {[%clk 0:01:42]}  Qxg3 {[%clk 0:01:54]} 22. Ne4 {[%clk 0:01:39]}  Nxe4 {[%clk 0:01:16]} 23. fxe4 {[%clk 0:01:39]}  Qe3+ {[%clk 0:01:16]} 24. Nf2 {[%clk 0:01:38]}  b6 {[%clk 0:01:16]} 25. b5 {[%clk 0:01:31]}  Bxb5 {[%clk 0:00:56]} 26. Bxb5 {[%clk 0:01:28]}  bxa5 {[%clk 0:00:56]} 27. Bxa6 {[%clk 0:01:24]}  Rxa6 {[%clk 0:00:56]} 28. Rc7 {[%clk 0:01:22]}  Rb6 {[%clk 0:00:53]} 29. Qg4 {[%clk 0:01:19]}  Qg5 {[%clk 0:00:53]} 30. Qxg5 {[%clk 0:01:17]}  hxg5 {[%clk 0:00:54]} 31. Ng4 {[%clk 0:01:16]}  Rb4 {[%clk 0:00:46]} 32. f6 {[%clk 0:01:15]} 1-0


[Site "https://www.chess.com"]